bitfinex-derivatives/quotes_ETHF0:USTF0_20241229
["timestamp","ask_amount","ask_price","bid_price","bid_amount"]
[1735494691475,0.29798,3361.8,3361.6,0.29799]
[1735494692069,0.29798,3361.8,3361.5,6.69724821]
[1735494692577,0.29797,3361.9,3361.7,2.55078774]
[1735494692888,0.29798,3361.8,3361.7,2.55078774]
[1735494693889,3.2078,3362.2,3361.7,2.55078774]
[1735494694079,0.29797,3361.9,3361.7,2.55078774]
[1735494694584,0.29797,3361.9,3361.8,0.4211]
[1735494695889,0.29797,3361.9,3361.8,0.71908]
[1735494696787,0.8695,3362.3,3361.9,0.29796]
[1735494696988,0.29796,3362.0,3361.9,2.55076774]
[1735494697191,0.8695,3362.3,3361.9,2.55076774]
[1735494697385,0.29796,3362.0,3361.9,2.55076774]
[1735494697586,0.29796,3362.0,3361.9,2.25280774]
[1735494698991,0.29796,3362.0,3361.9,5.46060774]
[1735494699488,0.29796,3362.0,3361.9,2.25280774]
[1735494699688,0.29796,3362.0,3361.9,5.46060774]
[1735494700486,0.29796,3362.0,3361.9,2.25280774]
[1735494703194,4.0773,3362.3,3361.5,3.6475]
[1735494703490,0.29799,3361.6,3361.5,3.2078]
[1735494703797,0.29799,3361.6,3361.4,4.64324821]
[1735494703798,3.2078,3361.6,3361.4,4.64324821]
[1735494703997,1.6147,3361.5,3361.4,4.64324821]
[1735494704297,0.29804,3361.1,3361.0,5.09684821]
[1735494705187,0.29804,3361.1,3361.0,4.64324821]
[1735494705594,3.2078,3361.2,3360.5,4.64324821]
[1735494705794,0.29808,3360.6,3360.5,4.64324821]
[1735494706396,3.50588,3360.6,3360.5,4.64324821]
[1735494707394,0.29813,3360.0,3359.9,4.64324821]
[1735494708489,0.29809,3360.6,3360.0,0.29813]
[1735494708694,0.29809,3360.6,3360.3,3.5059]
[1735494708999,0.29809,3360.6,3360.4,0.4513]
[1735494709000,2.6412937,3360.6,3360.4,0.4513]
[1735494709199,2.3432037,3360.6,3360.4,0.4513]
[1735494709397,0.29809,3360.5,3360.4,0.4513]
[1735494710898,3.50587,3360.8,3360.6,0.29808]
[1735494711598,0.29807,3360.8,3360.6,0.29808]
[1735494712397,0.29808,3360.7,3360.5,0.29809]
[1735494712900,1.1845,3361.1,3360.4,2.70410774]
[1735494713297,0.29809,3360.5,3360.4,2.70410774]
[1735494714999,0.29809,3360.5,3360.4,5.91190774]
[1735494715500,0.29808,3360.7,3360.5,0.29809]
[1735494715701,0.29808,3360.6,3360.5,0.29809]
[1735494717791,0.29809,3360.5,3360.4,3.2078]
[1735494717997,0.29813,3360.1,3360.0,4.64324821]
[1735494718598,4.5133,3360.4,3359.6,9.45314821]
[1735494718599,0.29816,3359.7,3359.6,9.45314821]
[1735494719399,0.29816,3359.7,3359.6,9.75131821]
[1735494719808,0.29816,3359.7,3359.6,4.8099]
[1735494720106,4.5133,3360.4,3359.6,4.8099]
[1735494720308,0.29816,3359.8,3359.7,0.29816]
[1735494720501,4.5133,3360.4,3359.7,0.29816]
[1735494720899,0.29815,3359.8,3359.7,0.29816]
[1735494721508,4.5133,3360.4,3359.6,4.8099]
[1735494721708,0.29813,3360.1,3359.9,0.29814]
[1735494722204,4.5133,3360.4,3359.9,0.29814]
[1735494722503,0.29814,3359.9,3359.8,2.25280774]
[1735494724408,0.29814,3359.9,3359.8,2.55095774]
[1735494724599,4.5133,3360.4,3359.8,2.55095774]
[1735494724600,4.5133,3360.4,3359.8,2.25280774]
[1735494724797,4.5133,3360.4,3360.0,0.29813]
[1735494724798,0.29811,3360.3,3360.0,0.29813]
[1735494725005,0.29813,3360.1,3360.0,0.29813]
[1735494725204,0.29814,3360.0,3359.9,0.29814]
[1735494725703,0.29813,3360.1,3359.9,0.29814]
[1735494725902,0.29813,3360.0,3359.9,0.29814]
[1735494726601,3.6609,3360.4,3359.9,0.29814]
[1735494726808,0.29811,3360.3,3360.2,0.29812]
[1735494727010,0.29811,3360.3,3360.2,0.74002]
[1735494727907,0.29811,3360.3,3360.2,0.4419]
[1735494730308,3.2078,3360.4,3359.8,2.70850774]
[1735494730503,0.29814,3359.9,3359.8,3.00665774]
[1735494730705,0.4509,3360.2,3359.7,1.183]
[1735494730906,0.29815,3359.8,3359.7,1.183]
[1735494731209,0.29817,3359.6,3359.5,3.43580774]
[1735494731905,0.29817,3359.7,3359.6,0.29817]
[1735494732907,0.29815,3359.9,3359.8,0.29815]
[1735494733111,0.29814,3360.0,3359.9,0.29814]
[1735494733605,0.4509,3360.2,3359.8,2.25280774]
[1735494733906,0.29814,3359.9,3359.8,2.25280774]
[1735494735209,0.29816,3359.7,3359.6,3.2078]
[1735494736307,0.29817,3359.6,3359.5,2.25280774]
[1735494736503,3.2078,3360.0,3359.5,2.25280774]
[1735494736708,3.50594,3360.0,3359.9,0.29814]
[1735494738121,0.29814,3359.9,3359.8,2.55095774]
[1735494738310,0.29814,3359.9,3359.8,2.25280774]
[1735494739114,0.29814,3359.9,3359.8,2.55095774]
[1735494740218,0.29814,3359.9,3359.8,2.25280774]
[1735494742014,0.29814,3359.9,3359.8,2.55095774]
[1735494742619,0.29814,3359.9,3359.8,2.25280774]
[1735494744018,0.29814,3359.9,3359.8,2.55095774]
[1735494745319,0.29814,3359.9,3359.8,2.25280774]
[1735494746324,0.29817,3359.6,3359.5,2.69500774]
[1735494746622,0.29817,3359.6,3359.5,2.99318774]
[1735494748923,0.29817,3359.6,3359.5,2.69500774]
[1735494749225,0.29817,3359.6,3359.5,2.99318774]
[1735494758523,0.29817,3359.6,3359.5,7.65846651]
[1735494760724,0.29817,3359.6,3359.5,0.74038]
[1735494761433,0.29817,3359.6,3359.5,2.99318774]
[1735494763927,0.29817,3359.7,3359.6,0.29817]
[1735494765230,0.29817,3359.7,3359.6,12.71161585]
[1735494772234,0.29817,3359.7,3359.6,13.7767282]
[1735494774038,0.29817,3359.7,3359.6,12.41344585]
[1735494774228,0.75487,3359.7,3359.6,12.41344585]
[1735494775138,0.75487,3359.7,3359.5,4.67467423]
[1735494775139,0.29817,3359.6,3359.5,4.67467423]
[1735494776431,0.29818,3359.5,3359.4,4.67467423]
[1735494777434,3.8168286,3359.5,3359.4,4.67467423]
[1735494777836,3.8168286,3359.5,3359.4,4.97286423]
[1735494778035,3.8168286,3359.5,3359.4,5.40336423]
[1735494778434,0.29818,3359.5,3359.4,5.40336423]
[1735494779748,2.64331173,3359.5,3359.4,10.83381849]
[1735494781453,1.64673173,3359.5,3359.4,10.83381849]
[1735494781652,1.16833052,3359.5,3359.4,10.83381849]
[1735494782753,3.2078,3359.9,3359.8,0.29815]
[1735494782952,3.2078,3359.9,3359.8,1.48015]
[1735494783147,3.5186486,3360.2,3359.8,4.3898]
[1735494783353,3.8167686,3360.2,3360.1,0.29813]
[1735494783748,3.8167686,3360.2,3360.1,0.73583]
[1735494784251,0.29812,3360.2,3360.1,0.73583]
[1735494784454,0.29811,3360.3,3360.2,0.29812]
[1735494784656,0.29811,3360.3,3360.2,0.74412]
[1735494785356,0.29811,3360.3,3360.2,13.18792211]
[1735494786055,0.29811,3360.3,3360.2,12.88980211]
[1735494786454,0.29811,3360.3,3360.2,6.17457426]
[1735494787451,0.29811,3360.3,3360.2,5.41637653]
[1735494787954,0.4477,3360.4,3360.2,5.11825653]
[1735494788352,3.2078,3360.6,3360.3,2.25071743]
[1735494788558,3.5186486,3360.7,3360.6,0.29808]
[1735494788753,3.5186486,3360.7,3360.6,3.73079743]
[1735494789755,0.29804,3361.2,3361.0,0.29804]
[1735494790057,0.29803,3361.2,3361.1,0.4231]
[1735494793756,0.29806,3360.8,3360.7,4.96148565]
[1735494793964,0.29806,3360.9,3360.8,0.29806]
[1735494794455,0.29805,3361.0,3360.8,0.29806]
[1735494794661,0.29806,3360.9,3360.8,0.29806]
[1735494794962,0.4251,3361.3,3360.7,5.98521565]
[1735494795157,0.29805,3361.0,3360.9,0.29805]
[1735494795461,0.4251,3361.3,3360.7,1.61987]
[1735494795462,0.29803,3361.2,3360.7,1.61987]
[1735494795760,0.29806,3360.9,3360.8,0.29806]
[1735494796759,0.29806,3360.8,3360.7,0.8896]
[1735494797057,0.29807,3360.7,3360.6,3.2078]
[1735494797361,1.20847,3360.7,3360.6,3.2078]
[1735494799059,0.75137,3360.7,3360.6,3.2078]
[1735494805263,0.29809,3360.5,3360.4,1.6165]
[1735494805867,0.4533,3360.7,3360.4,1.3184]
[1735494806072,0.29809,3360.6,3360.5,0.29809]
[1735494810370,0.29809,3360.6,3360.5,1.3626283]
[1735494812872,0.29808,3360.7,3360.6,0.29808]
[1735494817678,3.95994,3361.1,3361.0,0.29805]
[1735494817980,0.29804,3361.1,3361.0,1.0645383]
[1735494818180,0.29806,3360.9,3360.4,9.18961565]
[1735494818479,0.29806,3360.9,3360.8,1.3625983]
[1735494821985,0.75045,3361.0,3360.9,0.29806]
[1735494822385,0.75045,3361.0,3360.9,0.72516]
[1735494824083,0.29805,3361.0,3360.9,0.72516]
[1735494826487,0.29805,3361.0,3360.9,0.4271]
[1735494826990,0.29805,3361.0,3360.9,5.38857565]
[1735494827584,0.29805,3361.0,3360.9,5.09051565]
[1735494830789,0.29805,3361.0,3360.9,5.91308905]
[1735494834594,0.29805,3361.0,3360.9,12.9264369]
[1735494834997,0.29805,3361.0,3360.9,12.4993369]
[1735494835909,3.8166986,3361.0,3360.9,5.75269662]
[1735494839913,3.8166986,3361.0,3360.9,11.27939182]
[1735494840901,3.8166986,3361.0,3360.9,6.5912335]
[1735494842312,0.29805,3361.0,3360.9,1.0645383]
[1735494844407,3.81588946,3361.0,3360.9,6.59098093]
[1735494845714,3.81588946,3361.0,3360.9,7.04488093]
[1735494846615,3.51783946,3361.0,3360.9,7.34294093]
[1735494846815,3.51783946,3361.0,3360.9,12.48287923]
[1735494846816,2.12083946,3361.0,3360.9,12.48287923]
[1735494847005,0.16843946,3361.0,3360.9,12.48287923]
[1735494847718,4.68039759,3361.2,3361.1,0.29804]
[1735494847916,4.68039759,3361.2,3361.1,1.3625783]
[1735494849222,0.29798,3361.8,3361.7,0.29798]
[1735494849413,0.29798,3361.8,3361.7,1.3625183]
[1735494850217,0.29798,3361.8,3361.7,6.88896093]
[1735494850416,0.29798,3361.8,3361.7,13.90440365]
[1735494850816,0.29798,3361.8,3361.7,12.54188535]
[1735494851224,0.29798,3361.8,3361.7,13.90440365]
[1735494851517,0.29798,3361.8,3361.7,6.88896093]
[1735494852117,0.29798,3361.8,3361.7,6.59098093]
[1735494852518,0.29798,3361.8,3361.7,5.74028634]
[1735494855025,0.29798,3361.8,3361.7,6.03826634]
[1735494855726,0.29798,3361.8,3361.7,5.74028634]
[1735494856125,0.29798,3361.8,3361.7,1.0645383]
[1735494858828,0.29798,3361.8,3361.7,1.3625183]
[1735494859527,0.72747,3361.9,3361.8,0.29798]
[1735494859725,0.29798,3361.8,3361.7,1.3625183]
[1735494860927,0.29798,3361.8,3361.7,1.0645383]
[1735494861331,0.29798,3361.7,3361.6,4.97373804]
[1735494861531,0.29798,3361.7,3361.6,6.03827634]
[1735494861931,0.29798,3361.7,3361.6,4.67574804]
[1735494862230,0.29798,3361.7,3361.6,5.74028634]
[1735494862931,0.29798,3361.7,3361.2,9.65152363]
[1735494862932,0.29801,3361.4,3361.3,4.67574804]
[1735494863125,0.29801,3361.4,3361.3,5.74028634]
[1735494863931,0.29801,3361.4,3361.3,4.67574804]
[1735494864128,0.29801,3361.4,3361.3,5.74028634]
[1735494864327,0.29801,3361.4,3361.3,1.0645383]
[1735494865034,3.2078,3361.8,3361.0,7.88354804]
[1735494865035,0.29804,3361.1,3361.0,7.88354804]
[1735494865331,0.29804,3361.1,3361.0,8.94808634]
[1735494865538,0.29804,3361.1,3361.0,4.2723383]
[1735494865730,0.29804,3361.1,3361.0,1.0645383]
[1735494872739,0.29804,3361.1,3361.0,1.3625883]
[1735494873037,0.29804,3361.1,3361.0,1.0645383]
[1735494874240,0.29804,3361.1,3361.0,1.3625883]
[1735494875133,0.29804,3361.1,3360.9,4.67270382]
[1735494875333,0.29805,3361.0,3360.9,4.67270382]
[1735494875634,0.29805,3361.0,3360.9,4.97076382]
[1735494876543,0.29805,3361.0,3360.9,0.29806]
[1735494877135,3.2078,3361.2,3360.8,4.67270382]
[1735494877340,0.29805,3361.0,3360.9,0.29805]
[1735494877834,0.29806,3360.9,3360.8,4.67270382]
[1735494878442,0.29806,3360.9,3360.8,5.73724212]
[1735494878943,0.29806,3360.9,3360.8,1.0645383]
[1735494879843,3.50584,3361.2,3361.1,0.29804]
[1735494880031,3.50584,3361.2,3361.1,1.3625783]
[1735494882044,3.50584,3361.2,3361.1,1.0645383]
[1735494891342,3.50584,3361.2,3361.1,1.3625783]
[1735494891946,3.50584,3361.2,3361.1,1.0645383]
[1735494894551,0.29804,3361.2,3361.1,1.0645383]
[1735494895447,0.29804,3361.2,3361.1,1.3625783]
[1735494897749,3.50581,3361.5,3361.4,0.29801]
[1735494897949,3.50581,3361.5,3361.4,1.3625483]
[1735494898652,0.29801,3361.5,3361.4,1.3625483]
[1735494899254,0.29801,3361.5,3361.4,6.03525212]
[1735494902155,0.29801,3361.5,3361.4,6.96703494]
[1735494902755,0.298,3361.5,3361.4,6.96703494]
[1735494903758,0.9089,3361.7,3361.5,0.298]
[1735494903759,0.298,3361.6,3361.5,0.298]
[1735494903961,0.298,3361.6,3361.5,1.3625383]
[1735494904261,0.298,3361.6,3361.5,1.0645383]
[1735494905259,0.298,3361.6,3361.5,5.74630949]
[1735494906463,0.298,3361.6,3361.5,6.67446333]
[1735494906666,0.298,3361.6,3361.5,6.97246333]
[1735494906970,0.298,3361.6,3361.5,6.67446333]
[1735494907870,0.298,3361.6,3361.5,13.68990605]
[1735494909773,0.298,3361.6,3361.5,13.98790605]
[1735494912371,0.298,3361.6,3361.5,12.62536775]
[1735494914173,3.5058,3361.6,3361.5,12.62536775]
[1735494914377,0.29801,3361.4,3361.3,5.74924219]
[1735494915776,0.29801,3361.4,3361.3,4.68470389]
[1735494917076,0.298,3361.2,3361.1,5.74924219]
[1735494917878,0.758,3361.2,3361.1,5.74924219]
[1735494920375,3.9658,3361.2,3361.1,4.68470389]
[1735494920579,3.9658,3361.2,3361.1,5.74924219]
[1735494922577,0.758,3361.2,3361.1,5.74924219]
[1735494923285,0.46,3361.2,3361.1,6.04725219]
[1735494924278,0.758,3361.2,3361.1,6.97385784]
[1735494926085,0.46,3361.2,3361.1,6.97385784]
[1735494926379,3.2078,3361.3,3361.2,0.298]
[1735494926580,3.51348449,3361.6,3361.5,0.29797]
[1735494926779,3.51348449,3361.6,3361.5,1.3625083]
[1735494928079,0.4554,3361.8,3361.7,0.29795]
[1735494928281,3.95828449,3362.2,3362.1,0.29792]
[1735494928282,3.51348449,3362.2,3362.1,0.29792]
[1735494929682,0.29789,3362.4,3362.1,5.61130954]
[1735494929976,0.29789,3362.4,3362.3,1.0645383]
[1735494930179,0.29789,3362.4,3362.3,2.54422244]
[1735494930390,0.892,3362.5,3362.3,2.54422244]
[1735494930685,1.18989,3362.5,3362.3,2.54422244]
[1735494930988,0.892,3362.5,3362.4,0.29789]
[1735494931686,0.892,3362.5,3362.3,6.92418]
[1735494931881,0.29789,3362.4,3362.3,6.92418]
[1735494933787,0.29789,3362.4,3362.3,2.24632244]
[1735494935279,0.2979,3362.3,3362.2,1.18]
[1735494937289,0.892,3362.5,3362.2,1.18]
[1735494937487,0.2979,3362.4,3362.3,0.2979]
[1735494937888,3.50566,3362.8,3362.6,0.29787]
[1735494938188,0.29786,3362.8,3362.6,2.54419244]
[1735494939896,0.75585,3362.9,3362.8,0.29786]
[1735494940788,0.458,3362.9,3362.8,0.29786]
[1735494943799,0.75585,3362.9,3362.8,0.29786]
[1735494943998,0.17974436,3362.9,3362.6,2.69982244]
[1735494944299,0.4324,3363.1,3362.6,2.54419244]
[1735494944300,0.29787,3362.7,3362.6,2.54419244]
[1735494944502,0.29787,3362.7,3362.6,2.24632244]
[1735494944993,0.29786,3362.8,3362.7,0.29786]
[1735494945194,0.29785,3362.9,3362.8,0.29786]
[1735494945693,0.29785,3362.9,3362.7,0.29786]
[1735494946197,3.2078,3363.1,3362.9,0.29784]
[1735494946392,3.2078,3363.1,3362.9,2.24632244]
[1735494946597,0.2978,3363.4,3363.2,0.29782]
[1735494946803,0.2978,3363.4,3363.3,0.29781]
[1735494946990,0.29781,3363.3,3363.2,2.24632244]
[1735494948298,0.4634,3363.4,3363.2,2.54414244]
[1735494948500,0.76121,3363.4,3363.2,2.24632244]
[1735494948699,0.76121,3363.4,3363.3,0.29781]
[1735494950691,0.4634,3363.4,3363.3,0.29781]
[1735494950899,3.2078,3364.0,3363.2,6.63312244]
[1735494951105,0.29778,3363.8,3363.7,2.24632244]
[1735494951298,0.8825,3363.9,3363.4,2.54412244]
[1735494951495,0.29777,3363.8,3363.4,2.54412244]
[1735494951696,0.8825,3363.9,3363.4,2.54412244]
[1735494952702,0.29779,3363.5,3363.4,2.24632244]
[1735494952901,0.29781,3363.3,3363.2,4.68462]
[1735494953701,0.75681,3363.3,3363.2,3.2078]
[1735494954105,0.29783,3363.1,3363.0,1.179]
[1735494955422,0.29785,3362.9,3362.8,5.75198244]
[1735494955608,0.29785,3362.9,3362.8,6.93098244]
[1735494956108,0.29784,3363.1,3363.0,0.29784]
[1735494957301,0.29785,3362.9,3362.8,6.93097244]
[1735494957501,0.4561,3363.3,3362.8,6.93097244]
[1735494957703,0.29785,3362.9,3362.8,6.93097244]
[1735494958101,0.29784,3363.0,3362.8,6.63312244]
[1735494958405,0.29784,3363.0,3362.9,0.29785]
[1735494959106,0.4561,3363.3,3362.9,0.29785]
[1735494959407,0.4561,3363.3,3363.0,0.29784]
[1735494959408,0.29784,3363.1,3363.0,0.29784]
[1735494961006,0.29785,3362.9,3362.8,6.93098244]
[1735494961206,0.29785,3362.9,3362.8,4.68466]
[1735494962711,0.29784,3363.0,3362.9,0.29784]
[1735494963410,0.29783,3363.1,3363.0,0.29783]
[1735494970115,0.4561,3363.3,3362.8,6.63312244]
[1735494970315,0.29783,3363.2,3363.1,0.29783]
[1735494972115,0.29785,3363.0,3362.9,0.29784]
[1735494972414,0.29785,3363.0,3362.9,4.97569756]
[1735494973813,0.4561,3363.3,3362.9,4.67785756]
[1735494974117,0.29783,3363.1,3363.0,0.29783]
[1735494975417,0.29783,3363.1,3363.0,4.97568756]
[1735494979622,0.29783,3363.1,3363.0,10.56295793]
[1735494980621,0.29783,3363.1,3363.0,10.26512793]
[1735494981218,0.29783,3363.1,3363.0,5.88511037]
[1735494981417,0.29783,3363.1,3363.0,5.58727037]
[1735494982119,0.29783,3363.1,3363.0,5.88511037]
[1735494982417,0.29783,3363.1,3363.0,0.29784]
[1735494984219,0.29783,3363.1,3363.0,1.36075867]
[1735494984724,0.29783,3363.1,3363.0,6.95333793]
[1735494985627,0.29783,3363.1,3363.0,16.30726156]
[1735494986127,0.29783,3363.1,3363.0,19.51506156]
[1735494986422,0.29783,3363.1,3363.0,19.21722156]
[1735494987118,0.29783,3363.1,3363.0,14.94650289]
[1735494988323,0.29783,3363.1,3363.0,5.59257926]
[1735494989623,0.29783,3363.1,3363.0,12.62179538]
[1735494993130,0.29783,3363.1,3363.0,12.91963538]
[1735494993329,0.29783,3363.1,3363.0,12.62179538]
[1735494995929,0.29783,3363.1,3363.0,12.91963538]
[1735494998324,0.29783,3363.1,3363.0,8.80037926]
[1735495000627,0.29783,3363.1,3363.0,15.83315361]
[1735495000827,3.81131449,3363.1,3363.0,15.83315361]
[1735495001027,3.81131449,3363.1,3363.0,12.62535361]
[1735495005040,4.97822759,3363.1,3363.0,4.68779915]
[1735495006334,0.29783,3363.1,3363.0,4.68779915]
[1735495011531,3.81293199,3363.1,3363.0,5.59438786]
[1735495012131,4.87585066,3363.1,3363.0,5.59438786]
[1735495012333,0.29784,3363.0,3362.9,7.03277435]
[1735495012542,0.29784,3363.0,3362.9,4.68512226]
[1735495013735,0.29786,3362.8,3362.7,4.68512226]
[1735495014334,1.19806,3362.8,3362.7,1.86892226]
[1735495014837,0.29787,3362.6,3362.5,7.03277435]
[1735495015734,3.50567,3362.6,3362.5,7.03277435]
[1735495016240,3.2078,3362.6,3361.9,7.03277435]
[1735495016441,0.29793,3362.0,3361.9,7.03277435]
[1735495018140,0.29793,3362.0,3361.4,0.4311]
[1735495018141,3.51116284,3362.0,3361.4,7.46387435]
[1735495018443,0.29797,3361.5,3361.4,7.46387435]
[1735495018838,0.72817,3361.5,3361.4,7.46387435]
[1735495019042,0.72817,3361.5,3361.4,0.4311]
[1735495020351,0.72817,3361.5,3360.9,7.03277435]
[1735495020352,0.4302,3361.5,3360.9,7.03277435]
[1735495020538,0.29802,3361.0,3360.9,9.09327435]
[1735495020737,0.29802,3361.0,3360.9,7.03277435]
[1735495021138,0.72822,3361.0,3360.9,7.03277435]
[1735495021643,0.29804,3360.7,3360.6,7.03277435]
[1735495023236,0.29807,3360.4,3360.3,3.12830566]
[1735495025143,0.29804,3360.8,3360.4,0.29807]
[1735495025341,0.29804,3360.8,3360.7,5.45460566]
[1735495025742,0.29804,3360.8,3360.7,6.63360566]
[1735495028851,0.29804,3360.8,3360.7,3.42580566]
[1735495029543,0.29804,3360.8,3360.7,3.85370566]
[1735495030350,0.29804,3360.8,3360.7,0.4279]
[1735495030545,3.2078,3361.1,3360.2,3.2078]
[1735495030843,0.29808,3360.3,3360.2,3.2078]
[1735495034439,0.4333,3360.6,3359.9,5.3062]
[1735495034642,0.29811,3360.0,3359.9,5.3062]
[1735495036852,0.29811,3360.0,3359.9,2.0984]
[1735495037150,0.29811,3360.0,3359.9,5.3062]
[1735495046668,0.29811,3360.0,3359.9,0.9194]
[1735495047871,0.29811,3360.0,3359.9,4.1272]
[1735495050567,0.29811,3360.0,3359.9,0.9194]
[1735495050767,0.29811,3360.0,3359.9,4.1272]
[1735495053271,0.29811,3360.0,3359.9,3.6714]
[1735495053575,0.29811,3360.0,3359.9,3.2078]
[1735495054272,0.29811,3360.0,3359.9,4.27265638]
[1735495055572,0.29811,3360.0,3359.9,3.2078]
[1735495055767,0.29811,3360.0,3359.9,4.27265638]
[1735495058368,0.4333,3360.6,3359.9,5.33751276]
[1735495058570,0.29805,3360.6,3360.5,1.06485638]
[1735495060374,3.6303,3360.7,3360.4,2.24866477]
[1735495060573,0.29806,3360.5,3360.4,2.24866477]
[1735495066178,0.29806,3360.5,3360.4,7.6708624]
[1735495068371,0.29806,3360.5,3360.4,14.70363675]
[1735495068978,2.32931193,3360.9,3360.4,14.70363675]
[1735495069179,2.62734193,3360.9,3360.8,5.45646477]
[1735495069877,0.29803,3360.9,3360.8,5.45646477]
[1735495071177,0.29803,3360.9,3360.8,17.89709274]
[1735495072280,0.29803,3360.9,3360.8,10.8786624]
[1735495074887,0.29803,3360.9,3360.8,8.62999763]
[1735495075188,0.29803,3360.9,3360.8,3.2078]
[1735495077084,0.29803,3360.9,3360.8,3.50583]
[1735495077588,0.9033,3361.3,3360.8,3.2078]
[1735495077886,0.9033,3361.3,3361.1,0.298]
[1735495078087,0.7619,3361.3,3361.2,3.2078]
[1735495081287,0.29801,3361.1,3361.0,1.179]
[1735495083190,0.29803,3360.8,3360.7,3.2078]
[1735495088489,0.4653,3361.0,3360.6,1.92975]
[1735495088691,0.29804,3360.7,3360.6,1.92975]
[1735495088893,0.29804,3360.7,3360.6,5.13755]
[1735495090992,0.29804,3360.7,3360.6,10.56805528]
[1735495091595,0.29804,3360.7,3360.6,7.36025528]
[1735495092096,0.29804,3360.7,3360.6,10.56805528]
[1735495094201,0.29804,3360.7,3360.6,11.63236482]
[1735495095103,0.29804,3360.7,3360.6,18.65079516]
[1735495095602,0.29804,3360.7,3360.6,15.44299516]
[1735495095794,0.29804,3360.7,3360.6,18.65079516]
[1735495097999,0.29804,3360.7,3360.6,15.44299516]
[1735495098202,0.29803,3360.9,3360.8,0.29803]
[1735495098400,0.29801,3361.1,3361.0,0.29801]
[1735495098600,0.7479,3361.2,3361.1,0.29801]
[1735495099902,0.4499,3361.2,3361.1,0.29801]
[1735495100107,0.7619,3361.3,3361.2,0.298]
[1735495100406,0.7619,3361.3,3361.2,1.36230954]
[1735495100800,0.7619,3361.3,3361.2,1.06430954]
[1735495102100,0.7619,3361.3,3361.2,4.27210954]
[1735495103314,0.7619,3361.3,3361.2,9.7106165]
[1735495104406,0.7619,3361.3,3361.2,16.72904684]
[1735495105808,0.7619,3361.3,3361.2,15.6647373]
[1735495107010,0.7619,3361.3,3361.2,8.64630696]
[1735495107303,3.09121193,3361.3,3361.2,3.2078]
[1735495107507,0.29802,3361.0,3360.9,7.01843034]
[1735495108308,1.16952,3361.0,3360.9,7.01843034]
[1735495108509,0.29803,3360.8,3360.7,7.01843034]
[1735495109704,3.20081193,3361.0,3360.7,5.44255015]
[1735495110009,0.29803,3360.8,3360.7,5.44255015]
[1735495111807,0.29803,3360.8,3360.7,12.46098049]
[1735495112602,0.29803,3360.8,3360.7,12.75902049]
[1735495113605,2.32931193,3361.0,3360.7,12.46098049]
[1735495113911,2.32931193,3361.0,3360.9,0.29803]
[1735495114207,0.298,3361.2,3360.9,2.24867102]
[1735495114413,0.298,3361.2,3361.1,3.50581]
[1735495114713,2.77781193,3361.4,3361.3,0.29799]
[1735495114714,3.07580193,3361.4,3361.3,0.29799]
[1735495115010,0.29799,3361.3,3361.2,0.76269]
[1735495117013,0.29799,3361.3,3361.2,6.20587529]
[1735495118217,0.29799,3361.3,3361.2,15.57887631]
[1735495119018,0.29799,3361.4,3361.3,0.29798]
[1735495119215,0.29799,3361.4,3361.3,1.179]
[1735495121626,0.29799,3361.4,3361.3,1.47699]
[1735495122021,0.29799,3361.4,3361.3,1.179]
[1735495123722,0.29799,3361.4,3361.3,1.47699]
[1735495124931,0.4332,3361.6,3361.3,1.179]
[1735495125135,2.79371193,3361.7,3361.5,2.24867102]
[1735495125136,2.32931193,3361.7,3361.5,2.24867102]
[1735495125326,2.32931193,3361.7,3361.6,0.72986]
[1735495128640,2.32931193,3361.7,3361.6,3.93766]
[1735495130338,2.32931193,3361.7,3361.6,5.00129468]
[1735495132038,3.80911284,3361.8,3361.7,0.29795]
[1735495132039,0.29795,3361.8,3361.7,0.29795]
[1735495132534,0.29794,3361.9,3361.8,0.29794]
[1735495132728,0.29794,3361.9,3361.8,1.36157468]
[1735495133544,0.29794,3361.9,3361.8,4.56937468]
[1735495134243,0.29794,3361.9,3361.8,3.50574]
[1735495134542,0.29794,3361.9,3361.8,4.56937468]
[1735495137039,0.8776,3362.1,3361.8,4.56937468]
[1735495137237,1.17552,3362.1,3362.0,1.06363468]
[1735495142247,0.29794,3361.9,3361.8,4.27143468]
[1735495143240,0.29794,3361.9,3361.7,3.97770163]
[1735495143241,4.27143468,3361.9,3361.7,3.97770163]
[1735495143437,0.29795,3361.8,3361.7,1.18490163]
[1735495144453,0.29797,3361.5,3361.4,1.06363468]
[1735495156041,2.32931193,3361.9,3361.4,1.06363468]
[1735495156244,2.62725193,3361.9,3361.8,1.06363468]
[1735495156445,2.32931193,3361.9,3361.8,1.36158468]
[1735495156950,3.62723193,3362.1,3361.8,1.06363468]
[1735495157144,3.62723193,3362.1,3362.0,1.36156468]
[1735495158042,3.32931193,3362.1,3362.0,1.36156468]
[1735495158251,3.62723193,3362.1,3362.0,1.36156468]
[1735495158449,1.29792,3362.1,3362.0,1.36156468]
[1735495158950,1.0,3362.1,3362.0,1.36156468]
[1735495161153,1.29792,3362.1,3362.0,1.36156468]
[1735495162160,1.0,3362.1,3362.0,1.36156468]
[1735495162454,1.0,3362.1,3362.0,13.72891197]
[1735495165653,1.29792,3362.1,3362.0,12.66527729]
[1735495165853,1.0,3362.1,3362.0,13.72891197]
[1735495168253,1.0,3362.1,3362.0,6.71293387]
[1735495168552,1.29792,3362.1,3362.0,6.71293387]
[1735495172063,1.0,3362.1,3362.0,6.71293387]
[1735495174264,1.0,3362.1,3362.0,7.77656855]
[1735495175063,1.0,3362.1,3362.0,14.79254665]
[1735495175759,1.0,3362.1,3362.0,13.72891197]
[1735495176062,1.29792,3362.1,3362.0,13.72891197]
[1735495177463,1.29792,3362.1,3362.0,6.71293387]
[1735495178068,1.0,3362.1,3362.0,6.71293387]
[1735495178264,1.0,3362.1,3362.0,7.77656855]
[1735495178568,1.0,3362.1,3362.0,6.71293387]
[1735495179266,1.0,3362.1,3362.0,13.72891197]
[1735495182966,1.0,3362.1,3362.0,14.79254665]
[1735495184163,1.0,3362.1,3362.0,18.00034665]